bitfinex/quotes_BTCUSD_20241117
["timestamp","ask_amount","ask_price","bid_price","bid_amount"]
[1731882345075,0.16738549,89669.0,89652.0,0.55594306]
[1731882346795,0.16738549,89669.0,89652.0,0.92307609]
[1731882349801,0.06771491,89666.0,89652.0,0.83248152]
[1731882349995,0.06771491,89666.0,89652.0,0.75598152]
[1731882350216,0.16738549,89669.0,89652.0,0.75598152]
[1731882352050,0.16738549,89669.0,89652.0,0.37984849]
[1731882352265,0.16738549,89669.0,89652.0,0.38784849]
[1731882352682,0.16738549,89669.0,89652.0,0.37984849]
[1731882353098,0.16738549,89669.0,89652.0,0.38784849]
[1731882353952,0.16738549,89669.0,89652.0,0.37384849]
[1731882354159,0.16738549,89669.0,89652.0,0.38784849]
[1731882354524,0.16738549,89669.0,89652.0,0.37384849]
[1731882354723,0.16738549,89669.0,89652.0,0.38784849]
[1731882356875,0.16738549,89669.0,89652.0,0.75578188]
[1731882357723,0.16738549,89669.0,89652.0,0.9551278]
[1731882358688,0.16738549,89669.0,89652.0,0.95539441]
[1731882359381,0.16738549,89669.0,89652.0,0.7559548]
[1731882359793,0.16738549,89669.0,89652.0,0.7789548]
[1731882360203,0.010452,89668.0,89652.0,1.02825431]
[1731882360417,0.010452,89667.0,89652.0,1.02825431]
[1731882360621,0.010452,89666.0,89652.0,0.7789548]
[1731882360826,0.010452,89665.0,89652.0,0.7789548]
[1731882361053,0.010452,89664.0,89652.0,0.7789548]
[1731882361253,0.010452,89663.0,89652.0,1.02825431]
[1731882361452,0.06771491,89666.0,89652.0,1.02825431]
[1731882362116,0.06771491,89666.0,89652.0,1.02831224]
[1731882362335,0.0209043,89665.0,89652.0,1.02831224]
[1731882362527,0.06771491,89666.0,89652.0,0.77898934]
[1731882362528,0.0209043,89664.0,89652.0,0.77898934]
[1731882362920,0.06771491,89666.0,89652.0,0.77898934]
[1731882362921,0.0209043,89663.0,89652.0,0.77898934]
[1731882363142,0.06771491,89666.0,89652.0,0.77898934]
[1731882363975,0.06752208,89666.0,89653.0,0.123]
[1731882364176,0.06752208,89666.0,89665.0,0.111526]
[1731882364365,0.08842659,89666.0,89665.0,0.111526]
[1731882364574,0.02090451,89666.0,89665.0,0.111526]
[1731882365614,0.02090451,89666.0,89665.0,0.117526]
[1731882366391,0.02090451,89666.0,89665.0,0.119526]
[1731882368526,0.16738549,89669.0,89668.0,0.111522]
[1731882368659,0.18829192,89669.0,89668.0,0.111522]
[1731882369062,0.02090643,89669.0,89668.0,0.111522]
[1731882370325,0.02090643,89669.0,89668.0,0.112522]
[1731882370567,0.02090643,89669.0,89668.0,0.22158455]
[1731882370908,0.000855,89676.0,89668.0,0.11006255]
[1731882371265,0.02090575,89669.0,89668.0,0.112522]
[1731882371822,0.000855,89676.0,89666.0,0.32279481]
[1731882372044,0.02090532,89669.0,89668.0,0.009]
[1731882372274,0.02090532,89669.0,89668.0,0.125522]
[1731882372765,0.02090532,89669.0,89668.0,0.120522]
[1731882373217,0.02090532,89669.0,89668.0,0.111522]
[1731882374393,0.02090532,89669.0,89668.0,0.125522]
[1731882374620,0.02090532,89669.0,89668.0,0.117522]
[1731882375127,0.02090532,89669.0,89668.0,0.121322]
[1731882375325,0.06856991,89676.0,89669.0,0.111521]
[1731882375640,0.06856991,89676.0,89669.0,0.21126881]
[1731882375875,0.06856991,89676.0,89669.0,0.111521]
[1731882375876,0.02175738,89670.0,89669.0,0.111521]
[1731882376370,0.02175738,89670.0,89663.0,0.09974781]
[1731882376371,0.08947229,89670.0,89663.0,0.09974781]
[1731882376597,0.08947229,89670.0,89659.0,0.223065]
[1731882376598,0.06771491,89664.0,89659.0,0.09983412]
[1731882376870,0.02090218,89663.0,89658.0,0.09983412]
[1731882377123,0.02090218,89663.0,89653.0,0.19966825]
[1731882377124,0.06771491,89658.0,89653.0,0.21137412]
[1731882377371,0.06771491,89658.0,89648.0,0.09983412]
[1731882377372,0.223072,89657.0,89648.0,0.09983412]
[1731882377581,0.005,89667.0,89646.0,0.0017086]
[1731882377582,0.02090218,89656.0,89647.0,0.09983412]
[1731882377806,0.02090218,89656.0,89649.0,0.111546]
[1731882377807,0.06771491,89650.0,89649.0,0.111546]
[1731882378065,0.06771491,89650.0,89646.0,0.2248056]
[1731882378066,0.08861709,89650.0,89646.0,0.10154272]
[1731882378268,0.02090218,89649.0,89646.0,0.0017086]
[1731882378569,0.06771491,89650.0,89646.0,0.0017086]
[1731882378570,0.02089354,89648.0,89646.0,0.0017086]
[1731882378844,0.13244154,89647.0,89646.0,0.0017086]
[1731882379094,0.20015645,89647.0,89646.0,0.0017086]
[1731882379350,0.20015645,89647.0,89645.0,0.0017088]
[1731882379351,0.111549,89646.0,89645.0,0.0017088]
[1731882379562,0.223106,89644.0,89630.0,0.223138]
[1731882379797,0.06771491,89633.0,89632.0,0.111566]
[1731882380017,0.111579,89623.0,89616.0,0.111586]
[1731882380236,0.06771491,89627.0,89616.0,0.10906255]
[1731882380446,0.223131,89634.0,89614.0,0.0017094]
[1731882380447,0.06771491,89617.0,89614.0,0.0017094]
[1731882381459,0.111588,89615.0,89614.0,0.0017094]
[1731882381682,0.06771491,89616.0,89614.0,0.0017094]
[1731882382158,0.06771491,89616.0,89615.0,0.111588]
[1731882382600,0.06771491,89616.0,89614.0,0.0087094]
[1731882382902,0.39051849,89633.0,89615.0,0.10906255]
[1731882383150,0.39051849,89633.0,89624.0,0.223154]
[1731882383151,0.06771491,89629.0,89624.0,0.223154]
[1731882383359,0.06771491,89629.0,89627.0,0.111573]
[1731882383811,0.06771491,89629.0,89626.0,0.111574]
[1731882384068,0.02081946,89636.0,89616.0,0.223174]
[1731882384069,0.02081946,89636.0,89619.0,0.023]
[1731882384305,0.111559,89639.0,89619.0,0.023]
[1731882384306,0.16738549,89633.0,89620.0,0.10906255]
[1731882384765,0.16738549,89633.0,89632.0,0.111567]
[1731882385214,0.111559,89638.0,89632.0,0.111567]
[1731882385702,0.3471956,89641.0,89629.0,0.22314]
[1731882385919,0.1240816,89641.0,89640.0,0.111557]
[1731882386147,0.10328542,89641.0,89630.0,0.33220055]
[1731882386404,0.10328542,89641.0,89640.0,0.111557]
[1731882386668,0.10328542,89641.0,89633.0,0.223131]
[1731882386891,0.10328542,89641.0,89638.0,0.111559]
[1731882388813,0.111553,89643.0,89640.0,0.16738549]
[1731882389035,0.16738549,89658.0,89656.0,0.223074]
[1731882389258,0.16738549,89658.0,89657.0,0.111536]
[1731882389729,0.16738549,89667.0,89653.0,0.557705]
[1731882389953,0.16738549,89667.0,89652.0,0.223083]
[1731882389954,0.16738549,89667.0,89663.0,0.111528]
[1731882390183,0.16738549,89667.0,89654.0,0.10906255]
[1731882390416,0.27890949,89667.0,89654.0,0.10906255]
[1731882390647,0.27890949,89667.0,89662.0,0.111529]
[1731882390648,0.16738549,89667.0,89662.0,0.111529]
[1731882391074,0.16738549,89667.0,89658.0,0.223069]
[1731882391573,0.16738549,89667.0,89661.0,0.223062]
[1731882391822,0.16738549,89667.0,89663.0,0.111528]
[1731882392030,0.21566142,89669.0,89663.0,0.111528]
[1731882392242,0.10414042,89669.0,89654.0,0.10906255]
[1731882392700,0.10414042,89669.0,89663.0,0.111528]
[1731882393161,0.10414042,89669.0,89654.0,0.10906255]
[1731882393422,0.10414042,89669.0,89665.0,0.111525]
[1731882393870,0.10414042,89669.0,89663.0,0.223057]
[1731882393871,0.21566142,89669.0,89663.0,0.111527]
[1731882394519,0.111523,89668.0,89663.0,0.111528]
[1731882394745,0.10414042,89669.0,89664.0,0.111526]
[1731882395631,0.21566142,89669.0,89664.0,0.111526]
[1731882395852,0.10414042,89669.0,89661.0,0.22306]
[1731882396128,0.10414042,89669.0,89657.0,0.223072]
[1731882396356,0.10414042,89669.0,89654.0,0.10906255]
[1731882396585,0.10414042,89669.0,89664.0,0.111526]
[1731882396798,0.21566142,89669.0,89661.0,0.22306]
[1731882397017,0.111522,89668.0,89660.0,0.111532]
[1731882397240,0.111524,89667.0,89661.0,0.11153]
[1731882397500,0.10414042,89669.0,89657.0,0.001]
[1731882397718,0.10414042,89669.0,89654.0,0.11806255]
[1731882397891,0.21566242,89669.0,89662.0,0.111529]
[1731882398106,0.111523,89667.0,89662.0,0.111529]
[1731882398352,0.223045,89668.0,89656.0,0.223074]
[1731882398555,0.10414042,89669.0,89658.0,0.223069]
[1731882398753,0.10414042,89669.0,89663.0,0.111527]
[1731882398754,0.21566142,89669.0,89663.0,0.111527]
[1731882398973,0.10414042,89669.0,89657.0,0.223072]
[1731882399292,0.10414042,89669.0,89661.0,0.11153]
[1731882399651,0.111524,89667.0,89661.0,0.11153]
[1731882399858,0.10414042,89669.0,89658.0,0.223069]
[1731882400070,0.111523,89667.0,89659.0,0.223067]
[1731882400271,0.111523,89667.0,89661.0,0.11153]
[1731882400486,0.111523,89667.0,89659.0,0.223067]
[1731882400487,0.111523,89667.0,89660.0,0.111532]
[1731882400688,0.111523,89667.0,89661.0,0.111531]
[1731882401505,0.10414042,89669.0,89659.0,0.224067]
[1731882401714,0.111523,89668.0,89661.0,0.11153]
[1731882401926,0.111523,89667.0,89661.0,0.11153]
[1731882402131,0.10414042,89669.0,89662.0,0.111529]
[1731882402569,0.10414042,89669.0,89655.0,0.223074]
[1731882402772,0.111525,89666.0,89660.0,0.111531]
[1731882403026,0.10414042,89669.0,89656.0,0.223074]
[1731882403242,0.10414042,89669.0,89661.0,0.11153]
[1731882403407,0.111523,89667.0,89661.0,0.11153]
[1731882403603,0.111525,89666.0,89660.0,0.111532]
[1731882403847,0.10414042,89669.0,89660.0,0.111532]
[1731882403848,0.223047,89667.0,89660.0,0.111532]
[1731882404014,0.223047,89667.0,89656.0,0.223074]
[1731882404214,0.06774236,89663.0,89660.0,0.111532]
[1731882404449,0.223059,89662.0,89655.0,0.003]
[1731882404649,0.17927936,89656.0,89655.0,0.003]
[1731882404873,0.111537,89656.0,89655.0,0.003]
[1731882405435,0.116537,89656.0,89655.0,0.003]
[1731882405644,0.111541,89653.0,89640.0,0.0017096]
[1731882405821,0.17928336,89653.0,89640.0,0.0017096]
[1731882406700,0.17928336,89653.0,89652.0,0.0027098]
[1731882407404,0.18928336,89653.0,89652.0,0.0037098]
[1731882408086,0.29834591,89653.0,89652.0,0.0037098]
[1731882408315,0.33389585,89653.0,89652.0,0.0037098]
[1731882408560,0.43389585,89653.0,89652.0,0.0037098]
[1731882408814,0.60128134,89653.0,89652.0,0.0037098]
[1731882409035,0.01,89641.0,89640.0,0.0017096]
[1731882409253,0.53720315,89641.0,89640.0,0.0017096]
[1731882410210,0.54120315,89641.0,89640.0,0.0057096]
[1731882410627,0.53720315,89641.0,89640.0,0.0014096]
[1731882410860,0.54120315,89641.0,89640.0,0.0034096]
[1731882411089,0.59080315,89641.0,89640.0,0.0034096]
[1731882411989,0.59580315,89641.0,89640.0,0.0054096]
[1731882412223,0.59180315,89641.0,89640.0,0.0034096]
[1731882412442,0.59180315,89641.0,89640.0,0.0014096]
[1731882412443,0.65917194,89641.0,89640.0,0.0014096]
[1731882412669,0.38327964,89641.0,89640.0,0.0024096]
[1731882412876,0.27421709,89641.0,89640.0,0.0024096]
[1731882413091,0.041,89641.0,89640.0,0.1139666]
[1731882413304,0.041,89641.0,89640.0,0.0024096]
[1731882413743,0.16738549,89647.0,89640.0,0.0024096]
[1731882413744,0.111551,89645.0,89640.0,0.0014096]
[1731882413949,0.16738549,89647.0,89640.0,0.0014096]
[1731882414154,0.027,89641.0,89640.0,0.0014096]
[1731882415018,0.027,89641.0,89640.0,0.1129666]
[1731882415226,0.1032923,89648.0,89640.0,0.1129666]
[1731882415227,0.111551,89645.0,89640.0,0.1129666]
[1731882415435,0.005,89641.0,89640.0,0.0034096]
[1731882415644,0.014,89641.0,89640.0,0.0044096]
[1731882415874,0.009,89641.0,89640.0,0.0024096]
[1731882416346,0.006,89641.0,89640.0,0.0014096]
[1731882416561,0.006,89641.0,89640.0,0.1129666]
[1731882416768,0.006,89641.0,89640.0,0.0024096]
[1731882416769,0.015,89641.0,89640.0,0.0024096]
[1731882417179,0.015,89641.0,89640.0,0.1139666]
[1731882419849,0.015,89641.0,89640.0,0.1129666]
[1731882420093,0.006,89641.0,89640.0,0.1129666]
[1731882420337,0.006,89641.0,89640.0,0.1139666]
[1731882420551,0.006,89641.0,89640.0,0.1129666]
[1731882420768,0.006,89641.0,89640.0,0.1139666]
[1731882420986,0.16738549,89647.0,89642.0,0.111553]
[1731882421232,0.16738549,89647.0,89640.0,0.0024096]
[1731882421472,0.16738549,89647.0,89646.0,0.111549]
[1731882421683,0.16738549,89647.0,89644.0,0.111551]
[1731882421911,0.1032923,89648.0,89640.0,0.0024096]
[1731882421912,0.111556,89641.0,89640.0,0.0024096]
[1731882422128,0.2248483,89641.0,89640.0,0.0024096]
[1731882422334,0.33391085,89641.0,89640.0,0.0014096]
[1731882422556,0.35471833,89641.0,89640.0,0.0014096]
[1731882423236,0.35471833,89641.0,89640.0,0.0024096]
[1731882423440,0.35471833,89641.0,89640.0,0.0014096]
[1731882423892,0.36671724,89641.0,89640.0,0.0024096]
[1731882424336,0.37171724,89641.0,89640.0,0.0044096]
[1731882424549,0.35091085,89641.0,89640.0,0.0044096]
[1731882426076,0.39664008,89641.0,89640.0,0.0044096]
[1731882426531,0.39164008,89641.0,89640.0,0.0044096]
[1731882426802,0.39664008,89641.0,89640.0,0.0044096]
[1731882427510,0.28834778,89641.0,89640.0,0.0044096]
[1731882428877,0.39164008,89641.0,89640.0,0.0044096]
[1731882430614,0.28834778,89641.0,89640.0,0.0044096]
[1731882431657,0.39164008,89641.0,89640.0,0.0044096]
[1731882434019,0.49664008,89641.0,89640.0,0.0044096]
[1731882435986,0.111588,89615.0,89614.0,0.0017094]
[1731882436198,0.2148803,89615.0,89614.0,0.0017094]
[1731882437059,0.2148803,89615.0,89614.0,0.0087094]
[1731882437307,0.2158803,89615.0,89614.0,0.0227094]
[1731882439250,0.26138652,89615.0,89614.0,0.0227094]
[1731882440138,0.26038652,89615.0,89614.0,0.0087094]
[1731882440571,0.27538652,89615.0,89614.0,0.0027094]
[1731882440770,0.28338652,89615.0,89614.0,0.0047094]
[1731882441443,0.28338652,89615.0,89596.0,0.16738549]
[1731882441444,0.005,89595.0,89572.0,0.0752]
[1731882441661,0.1,89614.0,89590.0,0.16738549]
[1731882441662,0.111618,89591.0,89590.0,0.16738549]
[1731882441885,0.223249,89586.0,89574.0,0.111638]
[1731882442119,0.334876,89585.0,89574.0,0.10906255]
[1731882442383,0.223249,89586.0,89574.0,0.22070155]
[1731882442384,0.11163,89582.0,89574.0,0.22070155]
[1731882442617,0.1032923,89587.0,89574.0,0.10906255]
[1731882442853,0.111627,89584.0,89576.0,0.111635]
[1731882443270,0.111626,89585.0,89576.0,0.111635]
[1731882443485,0.111627,89584.0,89577.0,0.111635]
[1731882443697,0.111629,89583.0,89577.0,0.111635]
[1731882443913,0.11163,89582.0,89575.0,0.111637]
[1731882444124,0.223256,89583.0,89574.0,0.10906255]
[1731882444331,0.111631,89581.0,89574.0,0.10906255]
[1731882444556,0.111631,89581.0,89577.0,0.001]
[1731882444989,0.111631,89581.0,89576.0,0.111636]
[1731882445627,0.001,89582.0,89575.0,0.223276]
[1731882445845,0.001,89582.0,89576.0,0.223274]
[1731882446053,0.001,89582.0,89578.0,0.111634]
[1731882446261,0.112628,89583.0,89578.0,0.111634]
[1731882446466,0.111627,89584.0,89574.0,0.10906255]
[1731882446677,0.001,89581.0,89579.0,0.111632]
[1731882446882,0.002,89581.0,89579.0,0.111632]
[1731882447302,0.002,89581.0,89574.0,0.10906255]
[1731882447303,0.001,89581.0,89578.0,0.111634]
[1731882447541,0.16738549,89586.0,89574.0,0.112639]
[1731882447542,0.111634,89579.0,89574.0,0.112639]
[1731882448169,0.111634,89579.0,89574.0,0.111639]
[1731882449235,0.111634,89579.0,89577.0,0.0008551]
[1731882449872,0.113634,89579.0,89577.0,0.0008551]
[1731882450093,0.001,89581.0,89578.0,0.10906255]
[1731882450318,0.001,89581.0,89580.0,0.111632]
[1731882450538,0.111614,89594.0,89580.0,0.15856255]
[1731882450748,0.18819546,89599.0,89585.0,0.111625]
[1731882450749,0.16738549,89586.0,89585.0,0.111625]
[1731882450968,0.111614,89595.0,89584.0,0.223254]
[1731882451176,0.111614,89595.0,89584.0,0.33231655]
[1731882451403,0.111614,89595.0,89590.0,0.111619]
[1731882451649,0.001,89594.0,89589.0,0.11162]
[1731882452105,0.111613,89595.0,89589.0,0.11162]
[1731882452566,0.112613,89595.0,89589.0,0.11162]
[1731882453003,0.111614,89594.0,89589.0,0.11162]
[1731882453846,0.13242397,89595.0,89589.0,0.11162]
[1731882454059,0.111617,89593.0,89586.0,0.223249]
[1731882454262,0.02480997,89595.0,89589.0,0.001]
[1731882454479,0.111619,89590.0,89589.0,0.001]
[1731882455582,0.13242897,89590.0,89589.0,0.001]
[1731882455784,0.111619,89590.0,89589.0,0.001]
[1731882455997,0.111619,89590.0,89583.0,0.0825]
[1731882455998,0.004,89590.0,89583.0,0.0825]
[1731882456229,0.223243,89589.0,89583.0,0.0825]
[1731882456438,0.111626,89585.0,89583.0,0.0825]
[1731882457473,0.111625,89586.0,89583.0,0.0845]
[1731882457688,0.111624,89586.0,89583.0,0.0835]
[1731882457889,0.24407255,89587.0,89583.0,0.0825]
[1731882458101,0.111626,89585.0,89583.0,0.0835]
[1731882458511,0.111626,89585.0,89583.0,0.0845]
[1731882458720,0.111626,89585.0,89583.0,0.0835]
[1731882459136,0.111627,89584.0,89583.0,0.0835]
[1731882459763,0.111627,89584.0,89583.0,0.0825]
[1731882461224,0.111627,89584.0,89583.0,0.0833551]
[1731882461442,0.113627,89584.0,89583.0,0.0833551]
[1731882462472,0.13447061,89584.0,89583.0,0.0833551]
[1731882463125,0.02284361,89584.0,89583.0,0.0833551]
[1731882463348,0.13448403,89584.0,89583.0,0.0833551]
[1731882464474,0.13449164,89584.0,89583.0,0.0833551]
[1731882468351,0.02286464,89584.0,89583.0,0.0833551]
[1731882470260,0.002,89584.0,89583.0,0.0833551]
[1731882470506,0.02290077,89584.0,89583.0,0.0833551]
[1731882472906,0.02290077,89584.0,89583.0,0.0776551]
[1731882473136,0.02290077,89584.0,89583.0,0.1892831]
[1731882474437,0.02291806,89584.0,89583.0,0.1892831]
[1731882474903,0.002,89584.0,89583.0,0.1892831]
[1731882475376,0.06785478,89596.0,89583.0,0.0776551]
[1731882475377,0.223227,89595.0,89583.0,0.0776551]
[1731882475604,0.16738549,89590.0,89583.0,0.0796551]
[1731882476061,0.16738549,89590.0,89583.0,0.0776551]
[1731882476284,0.16738549,89590.0,89583.0,0.0806551]
[1731882476513,0.16738549,89590.0,89583.0,0.0836551]
[1731882476751,0.27900449,89590.0,89585.0,0.111625]
[1731882476972,0.27900449,89590.0,89583.0,0.0836551]
[1731882476973,0.16738549,89590.0,89583.0,0.0836551]
[1731882477198,0.223227,89595.0,89586.0,0.111624]
[1731882477430,0.22323,89594.0,89586.0,0.111624]
[1731882478640,0.06785478,89596.0,89583.0,0.3039091]
[1731882478855,0.111618,89591.0,89585.0,0.111625]
[1731882479920,0.11162,89590.0,89585.0,0.111625]
[1731882480131,0.11162,89590.0,89583.0,0.3009091]
[1731882480132,0.06785478,89596.0,89583.0,0.0776551]
[1731882480345,0.06785478,89596.0,89585.0,0.002]
[1731882480555,0.06785478,89596.0,89585.0,0.225251]
[1731882480768,0.111616,89593.0,89586.0,0.111624]
[1731882481006,0.111616,89593.0,89585.0,0.223251]
[1731882481007,0.06785478,89596.0,89585.0,0.226251]
[1731882481209,0.06785478,89596.0,89586.0,0.111623]
[1731882481210,0.111616,89593.0,89586.0,0.111623]
[1731882481421,0.06785478,89596.0,89586.0,0.111623]
[1731882481422,0.111614,89594.0,89588.0,0.111621]
[1731882481629,0.111616,89593.0,89588.0,0.111621]
[1731882481836,0.111616,89593.0,89585.0,0.006]
[1731882482040,0.111616,89593.0,89587.0,0.111623]
[1731882482258,0.111616,89593.0,89588.0,0.111621]
[1731882482925,0.06785478,89596.0,89586.0,0.001]
[1731882483137,0.06785478,89596.0,89583.0,0.0776551]
[1731882483138,0.111613,89595.0,89588.0,0.111622]
[1731882483339,0.111614,89594.0,89588.0,0.111622]
[1731882483567,0.001,89593.0,89588.0,0.111622]
[1731882483973,0.06785478,89596.0,89586.0,0.111623]
[1731882483974,0.223226,89595.0,89586.0,0.111623]
[1731882484199,0.111617,89592.0,89587.0,0.111623]
[1731882484435,0.111617,89592.0,89583.0,0.0776551]
[1731882484436,0.334843,89594.0,89585.0,0.111625]
[1731882484643,0.111618,89592.0,89585.0,0.111625]
[1731882485716,0.111618,89592.0,89586.0,0.112623]
[1731882486180,0.111618,89592.0,89586.0,0.111623]
[1731882486621,0.111618,89591.0,89586.0,0.111623]
[1731882486868,0.111618,89591.0,89585.0,0.002]
[1731882487092,0.111618,89591.0,89586.0,0.001]
[1731882488189,0.111618,89591.0,89586.0,0.112624]
[1731882488622,0.111618,89591.0,89586.0,0.111624]
[1731882488827,0.111618,89591.0,89586.0,0.112624]
[1731882489025,0.01046485,89590.0,89586.0,0.112624]
[1731882489232,0.01046485,89589.0,89586.0,0.112624]
[1731882489435,0.01046485,89588.0,89586.0,0.112624]
[1731882489639,0.01046485,89587.0,89586.0,0.113624]
[1731882490045,0.01046485,89587.0,89586.0,0.112624]
[1731882490252,0.01046482,89587.0,89586.0,0.111624]
[1731882490708,0.001,89588.0,89586.0,0.111624]
[1731882490914,0.01046485,89587.0,89584.0,0.223254]
[1731882491121,0.01046485,89587.0,89586.0,0.111624]
[1731882491329,0.01046483,89587.0,89586.0,0.111624]
[1731882492597,0.01046483,89587.0,89583.0,0.0776551]
[1731882492598,0.228249,89586.0,89583.0,0.0008551]
[1731882492810,0.111627,89584.0,89583.0,0.0008551]
[1731882493033,0.12209183,89584.0,89583.0,0.0008551]
[1731882494100,0.12209066,89584.0,89583.0,0.0008551]
[1731882494330,0.13883264,89584.0,89583.0,0.0008551]
[1731882496024,0.13882844,89584.0,89583.0,0.0008551]
[1731882496875,0.14082844,89584.0,89583.0,0.0008551]
[1731882497086,0.16175166,89584.0,89583.0,0.0008551]
[1731882497312,0.13455022,89584.0,89583.0,0.0008551]
[1731882497523,0.16175023,89584.0,89583.0,0.0008551]
[1731882498169,0.05012323,89584.0,89577.0,0.00074592]
[1731882498398,0.04812323,89583.0,89577.0,0.00074592]
[1731882498645,0.04812323,89583.0,89567.0,0.0456326]
[1731882498646,0.005,89563.0,89562.0,0.0017102]
[1731882498870,0.23763101,89563.0,89562.0,0.0017102]
[1731882499109,0.2515882,89563.0,89562.0,0.0017102]
[1731882499325,0.43576602,89563.0,89562.0,0.0017102]
[1731882499535,0.57077568,89563.0,89562.0,0.0017102]
[1731882499754,0.60594635,89563.0,89562.0,0.0017102]
[1731882499993,0.8150089,89563.0,89562.0,0.0017102]
[1731882500219,0.98699571,89563.0,89562.0,0.0057102]
[1731882500671,0.84913823,89563.0,89562.0,0.0057102]
[1731882500877,0.88393377,89563.0,89562.0,0.0057102]
[1731882501092,0.91907879,89563.0,89562.0,0.0057102]
[1731882501540,1.13033995,89563.0,89562.0,0.0057102]
[1731882501769,0.92998342,89563.0,89562.0,0.0057102]
[1731882502493,1.18043154,89563.0,89562.0,0.0057102]
[1731882502695,1.13022527,89563.0,89562.0,0.0057102]
[1731882502921,1.62998342,89563.0,89562.0,0.0057102]
[1731882503169,1.66266753,89563.0,89562.0,0.0057102]
[1731882503423,0.89481275,89563.0,89562.0,0.0057102]
[1731882503690,0.52400639,89563.0,89562.0,0.0057102]
[1731882504177,0.89342218,89563.0,89562.0,0.0057102]
[1731882504637,0.52400639,89563.0,89562.0,0.0057102]
[1731882505577,0.6239962,89563.0,89562.0,0.0057102]
[1731882506280,1.16870639,89563.0,89562.0,0.0057102]
[1731882507425,1.23656117,89563.0,89562.0,0.0057102]
[1731882508826,1.46861353,89563.0,89562.0,0.0057102]
[1731882509087,1.46861353,89563.0,89528.0,0.21438549]
[1731882509088,0.38536956,89557.0,89528.0,0.21438549]
[1731882509308,0.504868,89557.0,89528.0,0.21438549]
[1731882509793,0.015,89556.0,89525.0,0.0826]
[1731882510035,0.38537556,89552.0,89526.0,0.16738549]
[1731882510271,0.38537556,89552.0,89525.0,0.0826]
[1731882510272,1.204874,89552.0,89527.0,0.16738549]
[1731882510497,1.181874,89552.0,89527.0,0.16738549]
[1731882510737,1.18183012,89552.0,89527.0,0.16738549]
[1731882510963,1.03572855,89552.0,89527.0,0.16738549]
[1731882511190,1.03572855,89552.0,89526.0,0.223397]
[1731882511191,1.18182986,89552.0,89526.0,0.446794]
[1731882511416,1.18182986,89552.0,89526.0,0.225397]
[1731882511641,1.18182986,89552.0,89535.0,0.0467]
[1731882511864,1.20882986,89552.0,89535.0,0.0467]
[1731882512323,0.98105775,89552.0,89535.0,0.0467]
[1731882512568,1.05391253,89552.0,89546.0,0.0779]
[1731882512824,1.02691253,89552.0,89546.0,0.0779]
[1731882513248,1.02068921,89552.0,89546.0,0.0779]
[1731882513461,1.04768921,89552.0,89546.0,0.0779]
[1731882513906,1.02068921,89552.0,89546.0,0.0779]
[1731882514150,0.3476891,89552.0,89546.0,0.0779]
[1731882514375,0.31652078,89552.0,89546.0,0.0779]
[1731882514582,0.38937556,89552.0,89546.0,0.0779]
[1731882514789,0.45761402,89552.0,89546.0,0.0779]
[1731882515001,0.46800577,89552.0,89546.0,0.0779]
[1731882515459,0.44100577,89552.0,89546.0,0.0779]
[1731882515681,0.46800577,89552.0,89546.0,0.0779]
[1731882515891,0.44600577,89552.0,89546.0,0.0779]
[1731882516120,0.46800577,89552.0,89546.0,0.0779]
[1731882516548,0.44100577,89552.0,89546.0,0.0779]
[1731882516768,0.46800577,89552.0,89546.0,0.0779]
[1731882517000,0.58206832,89552.0,89546.0,0.0779]
[1731882517214,0.60284489,89552.0,89537.0,0.0756]
[1731882517453,0.6028484,89552.0,89537.0,0.0756]
[1731882518570,0.5978484,89552.0,89537.0,0.0756]
[1731882518788,0.6028484,89552.0,89537.0,0.0756]
[1731882519230,0.5978484,89552.0,89537.0,0.0756]
[1731882519446,0.6028484,89552.0,89537.0,0.0756]
[1731882519657,0.5978484,89552.0,89537.0,0.0756]
[1731882519870,1.2978484,89552.0,89537.0,0.0756]
[1731882520309,1.28206718,89552.0,89537.0,0.0756]
[1731882520763,1.27707677,89552.0,89537.0,0.0756]
[1731882520983,1.27707677,89552.0,89540.0,0.223362]
[1731882521233,1.27707677,89552.0,89537.0,0.0756]
[1731882521234,1.09515926,89552.0,89537.0,0.0756]
[1731882521427,0.8372548,89552.0,89540.0,0.223361]
[1731882522286,0.9219208,89552.0,89545.0,0.111675]
[1731882522514,0.1949208,89552.0,89545.0,0.111675]
[1731882522724,0.23852078,89552.0,89545.0,0.111675]
[1731882523174,0.21152078,89552.0,89545.0,0.111675]
[1731882523384,0.23852078,89552.0,89545.0,0.111675]
[1731882523606,0.23852078,89552.0,89545.0,0.22335]
[1731882523607,0.059,89552.0,89545.0,0.22335]
[1731882523819,0.059,89552.0,89551.0,0.234478]
[1731882524255,0.12685478,89552.0,89551.0,0.12281]
[1731882524493,0.12685478,89552.0,89551.0,0.234478]
[1731882524494,0.059,89552.0,89551.0,0.234478]
[1731882524952,0.032,89552.0,89551.0,0.234478]
[1731882525217,0.032,89552.0,89551.0,0.235478]
[1731882525218,0.013,89552.0,89551.0,0.235478]
[1731882525672,0.026,89552.0,89551.0,0.235478]
[1731882532674,0.026,89552.0,89551.0,0.12381]
[1731882532895,0.026,89552.0,89551.0,0.235478]
[1731882533124,0.026,89552.0,89551.0,0.12381]
[1731882533976,0.026,89552.0,89551.0,0.235478]
[1731882534187,0.0364419,89552.0,89551.0,0.235478]
[1731882536100,0.0364419,89552.0,89551.0,0.114378]
[1731882536312,0.0414419,89552.0,89551.0,0.00271]
[1731882537256,0.031,89552.0,89551.0,0.00271]
[1731882538409,0.04144166,89552.0,89551.0,0.00271]
[1731882539385,0.15310766,89552.0,89551.0,0.00271]
[1731882539604,0.04144166,89552.0,89551.0,0.00271]
[1731882540299,0.031,89552.0,89551.0,0.00271]
[1731882543835,0.25172855,89552.0,89551.0,0.00271]
[1731882544288,0.14006255,89552.0,89551.0,0.00271]
[1731882545227,0.35171814,89552.0,89551.0,0.00271]
[1731882545468,0.36216607,89552.0,89551.0,0.00271]
[1731882545699,0.26217648,89552.0,89551.0,0.00271]
[1731882545927,0.25081456,89552.0,89551.0,0.00271]
[1731882546172,0.36248056,89552.0,89551.0,0.00271]
[1731882546395,0.30829442,89552.0,89551.0,0.00271]
[1731882546626,0.20799034,89552.0,89551.0,0.00271]
[1731882546842,0.30829442,89552.0,89551.0,0.00271]
[1731882547081,0.38758413,89552.0,89551.0,0.00271]